fUST/lending_fUST_20250707
["ID","MTS","AMOUNT","RATE_DAILY","PERIOD"]
[370029195,1751848053103,-150.0,0.00020572,2]
[370029196,1751848053128,-150.0,0.00020572,2]
[370029197,1751848053155,-150.0,0.00020572,2]
[370029198,1751848053182,-150.0,0.00020572,2]
[370029199,1751848053207,-151.0,0.00020572,2]
[370029200,1751848053416,-342.94589234,0.00020579,2]
[370029201,1751848053440,-637.719,0.0002059,2]
[370029202,1751848053465,-151.0,0.00020632,2]
[370029203,1751848053487,-277.734398,0.0002064,2]
[370029204,1751848053508,-151.0,0.0002064,2]
[370029205,1751848053532,-151.0,0.0002064,2]
[370029206,1751848053557,-151.0,0.0002064,2]
[370029207,1751848053580,-12582.33653824,0.0002064,10]
[370029208,1751848053601,-214.03875559,0.0002064,10]
[370029209,1751848053625,-524.94624002,0.0002064,10]
[370029210,1751848053648,-848.15551661,0.0002064,10]
[370029211,1751848053675,-460.0,0.00020644,2]
[370029212,1751848053698,-340.02,0.00020644,2]
[370029213,1751848053721,-377.16,0.0002066,3]
[370029214,1751848053744,-151.0,0.00020687,2]
[370029215,1751848053765,-151.0,0.00020687,2]
[370029216,1751848053788,-229.522531,0.00020687,2]
[370029217,1751848053808,-151.0,0.0002069,2]
[370029218,1751848053832,-151.0,0.0002069,2]
[370029219,1751848053851,-151.0,0.0002069,2]
[370029220,1751848053872,-151.0,0.0002069,2]
[370029221,1751848053893,-151.0,0.0002069,2]
[370029222,1751848053913,-151.0,0.0002069,2]
[370029223,1751848053932,-287.738569,0.0002069,2]
[370029224,1751848053954,-259.332302,0.0002069,2]
[370029225,1751848053975,-151.0,0.0002069,2]
[370029226,1751848053995,-151.0,0.0002069,2]
[370029227,1751848054016,-151.0,0.0002069,2]
[370029228,1751848054038,-151.0,0.0002069,2]
[370029229,1751848054060,-358.87352,0.0002069,2]
[370029230,1751848054082,-358.87352,0.0002069,2]
[370029231,1751848054105,-151.0,0.0002069,2]
[370029232,1751848054128,-151.0,0.0002069,2]
[370029233,1751848054150,-151.0,0.0002069,2]
[370029234,1751848054171,-151.0,0.0002069,2]
[370029235,1751848054194,-151.0,0.0002069,2]
[370029236,1751848054217,-151.0,0.0002069,2]
[370029237,1751848054240,-151.0,0.0002069,2]
[370029238,1751848054264,-151.0,0.0002069,2]
[370029239,1751848054287,-391.911836,0.0002069,2]
[370029240,1751848054309,-151.0,0.0002069,2]
[370029241,1751848054330,-391.911836,0.0002069,2]
[370029242,1751848054353,-151.0,0.0002069,2]
[370029243,1751848054375,-151.0,0.0002069,2]
[370029244,1751848054396,-151.0,0.0002069,2]
[370029245,1751848054417,-151.0,0.0002069,2]
[370029246,1751848054437,-151.0,0.0002069,2]
[370029247,1751848054458,-151.0,0.0002069,2]
[370029248,1751848054480,-166.018478,0.0002069,2]
[370029249,1751848054503,-166.018478,0.0002069,2]
[370029250,1751848054526,-151.0,0.0002069,2]
[370029251,1751848054547,-151.0,0.0002069,2]
[370029252,1751848054568,-191.575484,0.0002069,2]
[370029253,1751848054588,-151.0,0.000207,2]
[370029254,1751848054611,-151.0,0.000207,2]
[370029255,1751848054630,-151.0,0.000207,2]
[370029256,1751848054649,-229.522531,0.000207,2]
[370029257,1751848054672,-12582.33653824,0.000207,3]
[370029258,1751848054691,-214.03875559,0.000207,3]
[370029259,1751848054714,-189.575216,0.000207,2]
[370029260,1751848054736,-151.0,0.000207,2]
[370029261,1751848054759,-189.575216,0.000207,2]
[370029262,1751848054780,-151.0,0.000207,2]
[370029263,1751848054800,-524.94624002,0.000207,3]
[370029264,1751848054833,-151.0,0.000207,2]
[370029265,1751848054855,-151.0,0.000207,2]
[370029266,1751848054877,-151.0,0.000207,2]
[370029267,1751848054898,-151.0,0.000207,2]
[370029268,1751848054918,-848.15551661,0.000207,3]
[370029269,1751848054939,-151.0,0.000207,2]
[370029270,1751848054960,-502.59999347,0.00020721,2]
[370029271,1751848054981,-151.0,0.00020728,2]
[370029272,1751848055001,-151.0,0.00020728,2]
[370029273,1751848055023,-500.0,0.00020728,2]
[370029274,1751848055043,-198.0,0.00020728,2]
[370029275,1751848055064,-151.0,0.00020728,2]
[370029276,1751848055085,-151.0,0.00020728,2]
[370029277,1751848055107,-151.0,0.00020728,2]
[370029278,1751848055128,-151.0,0.00020733,2]
[370029279,1751848055148,-151.0,0.00020733,2]
[370029280,1751848055170,-231.466223,0.00020733,2]
[370029281,1751848055191,-151.0,0.00020733,2]
[370029282,1751848055212,-151.0,0.00020733,2]
[370029283,1751848055233,-391.911836,0.00020733,2]
[370029284,1751848055254,-391.911836,0.00020733,2]
[370029285,1751848055274,-151.0,0.00020733,2]
[370029286,1751848055294,-151.0,0.00020733,2]
[370029287,1751848055317,-168.0,0.00020733,2]
[370029288,1751848055338,-151.0,0.00020745,2]
[370029289,1751848055360,-151.0,0.00020747,2]
[370029290,1751848055382,-460.0,0.00020747,2]
[370029291,1751848055404,-151.0,0.00020755,2]
[370029292,1751848055427,-151.0,0.00020755,2]
[370029293,1751848055449,-151.0,0.00020755,2]
[370029294,1751848055470,-151.0,0.00020755,2]
[370029295,1751848055492,-151.0,0.00020755,2]
[370029296,1751848055515,-151.0,0.00020755,2]
[370029297,1751848055536,-151.0,0.00020755,2]
[370029298,1751848055558,-166.018478,0.00020755,2]
[370029299,1751848055581,-166.018478,0.00020755,2]
[370029300,1751848055602,-562.0,0.00020755,2]
[370029301,1751848055624,-198.0,0.00020755,2]
[370029302,1751848055645,-198.0,0.00020755,2]
[370029303,1751848055668,-179.73040439,0.0002077,2]
[370029304,1751848055690,-151.0,0.00020771,2]
[370029305,1751848055712,-151.0,0.00020771,2]
[370029306,1751848055732,-161.296516,0.00020771,2]
[370029307,1751848055753,-151.0,0.00020771,2]
[370029308,1751848055773,-151.0,0.00020842,2]
[370029309,1751848055794,-151.0,0.00020861,2]
[370029310,1751848055815,-189.575216,0.00020861,2]
[370029311,1751848055836,-151.0,0.00020861,2]
[370029312,1751848055859,-189.575216,0.00020861,2]
[370029313,1751848055881,-151.0,0.00020861,2]
[370029314,1751848055901,-18321.35,0.0002088,10]
[370029315,1751848055922,-3152.64,0.00020886,2]
[370029316,1751848055942,-21985.62,0.0002089,10]
[370029317,1751848055962,-151.0,0.0002089,2]
[370029318,1751848055982,-151.0,0.0002089,2]
[370029319,1751848056002,-151.0,0.0002089,2]
[370029320,1751848056022,-420.0,0.00020898,2]
[370029321,1751848056047,-1250.77,0.000209,2]
[370029322,1751848056067,-168.645758,0.000209,2]
[370029323,1751848056087,-151.0,0.000209,2]
[370029324,1751848056109,-229.522531,0.000209,2]
[370029325,1751848056130,-296.56939,0.000209,2]
[370029326,1751848056151,-259.332302,0.000209,2]
[370029327,1751848056174,-151.0,0.000209,2]
[370029328,1751848056195,-151.0,0.000209,2]
[370029329,1751848056215,-358.87352,0.000209,2]
[370029330,1751848056236,-358.87352,0.000209,2]
[370029331,1751848056262,-2457.09295909,0.000209,4]
[370029332,1751848056282,-5000.0,0.00020907,2]
[370029333,1751848056304,-151.0,0.00020907,2]
[370029334,1751848056325,-151.0,0.00020907,2]
[370029335,1751848056345,-151.0,0.00020907,2]
[370029336,1751848056368,-231.466223,0.00020907,2]
[370029337,1751848056389,-151.0,0.00020907,2]
[370029338,1751848056411,-391.911836,0.00020907,2]
[370029339,1751848056432,-391.911836,0.00020907,2]
[370029340,1751848056453,-151.0,0.00020907,2]
[370029341,1751848056474,-151.0,0.00020907,2]
[370029342,1751848056497,-151.0,0.00020907,2]
[370029343,1751848056518,-151.0,0.00020907,2]
[370029344,1751848056539,-151.0,0.00020907,2]
[370029345,1751848056559,-151.0,0.00020907,2]
[370029346,1751848056578,-151.0,0.00020907,2]
[370029347,1751848056601,-283.2,0.00020918,2]
[370029348,1751848056623,-151.0,0.00020922,2]
[370029349,1751848056644,-151.0,0.00020922,2]
[370029350,1751848056664,-3000.0,0.00020946,2]
[370029351,1751848056688,-151.0,0.00020946,2]
[370029352,1751848056710,-151.0,0.00020946,2]
[370029353,1751848056731,-151.0,0.00020946,2]
[370029354,1751848056754,-151.0,0.00020946,2]
[370029355,1751848056775,-151.0,0.00020946,2]
[370029356,1751848056796,-166.018478,0.00020946,2]
[370029357,1751848056818,-166.018478,0.00020946,2]
[370029358,1751848056841,-151.0,0.0002099,2]
[370029359,1751848056864,-151.0,0.0002099,2]
[370029360,1751848056886,-151.0,0.0002099,2]
[370029361,1751848056907,-151.0,0.0002099,2]
[370029362,1751848056927,-151.0,0.0002099,2]
[370029363,1751848056948,-229.522531,0.0002099,2]
[370029364,1751848056970,-259.332302,0.0002099,2]
[370029365,1751848056992,-259.332302,0.0002099,2]
[370029366,1751848057013,-151.0,0.0002099,2]
[370029367,1751848057035,-151.0,0.0002099,2]
[370029368,1751848057055,-151.0,0.0002099,2]
[370029369,1751848057074,-151.0,0.0002099,2]
[370029370,1751848057095,-358.87352,0.0002099,2]
[370029371,1751848057289,-358.87352,0.0002099,2]
[370029372,1751848057311,-358.87352,0.0002099,2]
[370029373,1751848057333,-358.87352,0.0002099,2]
[370029374,1751848057354,-151.0,0.0002099,2]
[370029375,1751848057378,-151.0,0.0002099,2]
[370029376,1751848057400,-151.0,0.0002099,2]
[370029377,1751848057423,-189.575216,0.0002099,2]
[370029378,1751848057444,-151.0,0.0002099,2]
[370029379,1751848057466,-189.575216,0.0002099,2]
[370029380,1751848057487,-151.0,0.0002099,2]
[370029381,1751848057509,-150.0,0.00021,2]
[370029382,1751848057532,-460.0,0.00021021,2]
[370029383,1751848057552,-2000.0,0.00021026,2]
[370029384,1751848057573,-151.0,0.00021063,4]
[370029385,1751848057599,-2457.09295896,0.00021072,4]
[370029386,1751848057623,-2457.09295896,0.00021245,4]
[370029387,1751848057645,-1202.47797036,0.00021269,2]
[370029388,1751848057669,-586.96,0.00021295,2]
[370029389,1751848057690,-641.0,0.000213,2]
[370029390,1751848057713,-168.0,0.00021363,2]
[370029391,1751848057733,-9143.22512033,0.00021369,2]
[370029392,1751848057753,-231.466223,0.00021369,2]
[370029393,1751848057774,-151.0,0.00021369,2]
[370029394,1751848057795,-151.0,0.00021369,2]
[370029395,1751848057816,-151.0,0.00021369,2]
[370029396,1751848057837,-228.227773,0.00021369,2]
[370029397,1751848057858,-391.911836,0.00021369,2]
[370029398,1751848057879,-151.0,0.00021369,2]
[370029399,1751848057901,-391.911836,0.00021369,2]
[370029400,1751848057922,-151.0,0.00021369,2]
[370029401,1751848057942,-151.0,0.00021369,2]
[370029402,1751848057964,-151.0,0.00021369,2]
[370029403,1751848057984,-151.0,0.00021369,2]
[370029404,1751848058006,-166.018478,0.00021369,2]
[370029405,1751848058027,-185.239426,0.00021369,2]
[370029406,1751848058047,-166.018478,0.00021369,2]
[370029407,1751848058067,-151.0,0.00021369,2]
[370029408,1751848058088,-189.575216,0.00021369,2]
[370029409,1751848058112,-151.0,0.00021369,2]
[370029410,1751848058132,-189.575216,0.00021369,2]
[370029411,1751848058154,-151.0,0.00021369,2]
[370029412,1751848058174,-151.0,0.00021369,2]
[370029413,1751848058196,-151.0,0.00021369,2]
[370029414,1751848058216,-151.0,0.00021369,2]
[370029415,1751848058237,-151.0,0.00021369,2]
[370029416,1751848058258,-151.0,0.00021369,2]
[370029417,1751848058281,-151.0,0.00021417,2]
[370029418,1751848058304,-151.0,0.00021417,2]
[370029419,1751848058326,-229.522531,0.00021417,2]
[370029420,1751848058352,-2457.09295896,0.00021417,5]
[370029421,1751848058374,-5000.0,0.00021455,2]
[370029422,1751848058395,-151.0,0.00021455,2]
[370029423,1751848058417,-259.332302,0.00021455,2]
[370029424,1751848058437,-151.0,0.00021455,2]
[370029425,1751848058458,-151.0,0.00021455,2]
[370029426,1751848058479,-358.87352,0.00021455,2]
[370029427,1751848058500,-358.87352,0.00021455,2]
[370029428,1751848058521,-151.0,0.00021455,2]
[370029429,1751848058543,-151.0,0.00021455,2]
[370029430,1751848058565,-151.0,0.00021455,2]
[370029431,1751848058586,-151.0,0.00021455,2]
[370029432,1751848058606,-500.0,0.00021512,2]
[370029433,1751848058626,-151.0,0.00021543,5]
[370029434,1751848058651,-2457.09295896,0.0002159,5]
[370029435,1751848058679,-168.0,0.0002167,2]
[370029436,1751848058699,-215.0738,0.00021728,2]
[370029437,1751848058720,-151.0,0.00021762,2]
[370029438,1751848058740,-151.0,0.00021762,2]
[370029439,1751848058761,-151.0,0.00021762,2]
[370029440,1751848058781,-391.911836,0.00021762,2]
[370029441,1751848058802,-151.0,0.00021762,2]
[370029442,1751848058823,-391.911836,0.00021762,2]
[370029443,1751848058845,-151.0,0.00021762,2]
[370029444,1751848058865,-151.0,0.00021762,2]
[370029445,1751848058884,-151.0,0.00021762,2]
[370029446,1751848058904,-151.0,0.00021762,2]
[370029447,1751848058924,-166.018478,0.00021762,2]
[370029448,1751848058945,-166.018478,0.00021762,2]
[370029449,1751848058965,-151.0,0.00021762,2]
[370029450,1751848058989,-2457.09295896,0.00021762,5]
[370029451,1751848059012,-1202.47797032,0.00021777,2]
[370029452,1751848059035,-189.575216,0.00021799,2]
[370029453,1751848059055,-278.022671,0.00021799,2]
[370029454,1751848059076,-189.575216,0.00021799,2]
[370029455,1751848059096,-151.0,0.00021799,2]
[370029456,1751848059119,-168.0,0.00021799,2]
[370029457,1751848059141,-500.0,0.00021805,2]
[370029458,1751848059163,-168.0,0.00021827,2]
[370029459,1751848059193,-1649.72331574,0.0002189,2]
[370029460,1751848059220,-6181.97549224,0.0002189,2]
[370029461,1751848059243,-28995.15310879,0.0002189,2]
[370029462,1751848059265,-151.0,0.000219,2]
[370029463,1751848059286,-151.0,0.000219,2]
[370029464,1751848059308,-229.522531,0.000219,2]
[370029465,1751848059331,-231.466223,0.000219,2]
[370029466,1751848059354,-259.332302,0.000219,2]
[370029467,1751848059376,-259.332302,0.000219,2]
[370029468,1751848059399,-151.0,0.000219,2]
[370029469,1751848059422,-358.87352,0.000219,2]
[370029470,1751848059444,-358.87352,0.000219,2]
[370029471,1751848059466,-151.0,0.000219,2]
[370029472,1751848059487,-151.0,0.000219,2]
[370029473,1751848059509,-391.911836,0.000219,2]
[370029474,1751848059530,-391.911836,0.000219,2]
[370029475,1751848059552,-151.0,0.000219,2]
[370029476,1751848059573,-151.0,0.000219,2]
[370029477,1751848059593,-151.0,0.000219,2]
[370029478,1751848059613,-151.0,0.000219,2]
[370029479,1751848059634,-166.018478,0.000219,2]
[370029480,1751848059655,-166.018478,0.000219,2]
[370029481,1751848059678,-151.0,0.000219,2]
[370029482,1751848059700,-189.575216,0.000219,2]
[370029483,1751848059722,-189.575216,0.000219,2]
[370029484,1751848059742,-151.0,0.000219,2]
[370029485,1751848059766,-500.0,0.00021905,2]
[370029486,1751848059787,-152.72922632,0.00021918,2]
[370029487,1751848059813,-2457.09295896,0.00021934,6]
[370029488,1751848059833,-208.0,0.0002197,4]
[370029489,1751848059853,-151.0,0.0002197,7]
[370029490,1751848059876,-151.0,0.0002197,7]
[370029491,1751848059895,-151.0,0.0002197,3]
[370029492,1751848059920,-151.0,0.0002199,7]
[370029493,1751848059940,-153.176861,0.0002199,7]
[370029494,1751848059960,-229.522531,0.0002199,7]
[370029495,1751848059981,-231.466223,0.0002199,7]
[370029496,1751848060002,-231.466223,0.0002199,7]
[370029497,1751848060023,-184.672792,0.0002199,7]
[370029498,1751848060042,-151.0,0.0002199,7]
[370029499,1751848060064,-12582.33653824,0.0002199,7]
[370029500,1751848060084,-391.911836,0.0002199,7]
[370029501,1751848060104,-391.911836,0.0002199,7]
[370029502,1751848060126,-151.0,0.0002199,7]
[370029503,1751848060146,-151.0,0.0002199,7]
[370029504,1751848060166,-151.0,0.0002199,2]
[370029505,1751848060188,-166.018478,0.0002199,7]
[370029506,1751848060208,-166.018478,0.0002199,7]
[370029507,1751848060230,-151.0,0.0002199,7]
[370029508,1751848060251,-214.03875559,0.0002199,7]
[370029509,1751848060273,-189.575216,0.0002199,7]
[370029510,1751848060295,-189.575216,0.0002199,7]
[370029511,1751848060316,-151.0,0.0002199,7]
[370029512,1751848060337,-524.94624002,0.0002199,7]
[370029513,1751848060357,-151.0,0.0002199,7]
[370029514,1751848060379,-848.15551661,0.0002199,7]
[370029515,1751848060399,-100000.0,0.0002199,2]
[370029516,1751848060420,-1250.77,0.00022,7]
[370029517,1751848060441,-5000.0,0.00022003,2]
[370029518,1751848060463,-500.0,0.00022005,2]
[370029519,1751848060485,-259.332302,0.00022005,7]
[370029520,1751848060506,-259.332302,0.00022005,7]
[370029521,1751848060528,-151.0,0.00022005,7]
[370029522,1751848060549,-358.87352,0.00022005,7]
[370029523,1751848060570,-358.87352,0.00022005,7]
[370029524,1751848060589,-2200.0,0.00022019,2]
[370029525,1751848060611,-802.341,0.00022019,2]
[370029526,1751848060632,-151.0,0.00022022,5]
[370029527,1751848060655,-168.0,0.00022029,2]
[370029528,1751848060686,-500.0,0.00022104,2]
[370029529,1751848060713,-2457.09295896,0.00022107,6]
[370029530,1751848060736,-230.0,0.00022115,2]
[370029531,1751848060760,-168.0,0.00022117,2]
[370029532,1751848060781,-12582.33653824,0.00022143,2]
[370029533,1751848060803,-160.0,0.00022143,2]
[370029534,1751848060824,-214.03875559,0.00022143,2]
[370029535,1751848061004,-215.18120504,0.00022143,2]
[370029536,1751848061025,-848.15551661,0.00022143,2]
[370029537,1751848061045,-837.69501035,0.00022144,2]
[370029538,1751848061066,-189.575216,0.00022146,7]
[370029539,1751848061088,-189.575216,0.00022146,7]
[370029540,1751848061110,-151.0,0.00022146,7]
[370029541,1751848061131,-163.245585,0.00022146,7]
[370029542,1751848061152,-151.0,0.00022147,7]
[370029543,1751848061172,-240.712625,0.00022148,7]
[370029544,1751848061194,-391.911836,0.00022148,7]
[370029545,1751848061215,-391.911836,0.00022148,7]
[370029546,1751848061237,-151.0,0.00022148,7]
[370029547,1751848061259,-240.181916,0.00022148,7]
[370029548,1751848061281,-151.0,0.00022148,2]
[370029549,1751848061303,-166.018478,0.00022148,7]
[370029550,1751848061325,-166.018478,0.00022148,7]
[370029551,1751848061347,-231.466223,0.00022153,7]
[370029552,1751848061372,-229.522531,0.00022155,7]
[370029553,1751848061397,-168.0,0.00022186,2]
[370029554,1751848061419,-6337.58644862,0.000222,7]
[370029555,1751848061442,-259.332302,0.000222,7]
[370029556,1751848061463,-259.332302,0.000222,7]
[370029557,1751848061486,-151.0,0.000222,7]
[370029558,1751848061507,-358.87352,0.000222,7]
[370029559,1751848061528,-358.87352,0.000222,7]
[370029560,1751848061550,-500.0,0.00022204,2]
[370029561,1751848061574,-2457.09295896,0.00022279,6]
[370029562,1751848061595,-1202.47797032,0.00022285,2]
[370029563,1751848061620,-168.0,0.00022297,2]
[370029564,1751848061642,-500.0,0.00022304,2]
[370029565,1751848061662,-1871.010829,0.0002238,5]
[370029566,1751848061689,-168.0,0.00022386,2]
[370029567,1751848061709,-1000.0,0.000224,5]
[370029568,1751848061735,-500.0,0.00022404,2]
[370029569,1751848061760,-168.0,0.00022433,2]
[370029570,1751848061786,-2457.09295896,0.00022452,7]
[370029571,1751848061807,-231.466223,0.00022452,7]
[370029572,1751848061828,-189.575216,0.00022452,7]
[370029573,1751848061850,-189.575216,0.00022452,7]
[370029574,1751848061871,-151.0,0.00022452,7]
[370029575,1751848061891,-530.4259167,0.00022466,2]
[370029576,1751848061912,-407.70096075,0.00022473,2]
[370029577,1751848061934,-502.66644241,0.00022473,2]
[370029578,1751848061955,-160.19171691,0.00022473,2]
[370029579,1751848061976,-500.0,0.00022473,2]
[370029580,1751848061997,-258.68066511,0.00022473,2]
[370029581,1751848062017,-501.2801372,0.00022473,2]
[370029582,1751848062041,-391.911836,0.00022473,7]
[370029583,1751848062062,-391.911836,0.00022473,7]
[370029584,1751848062082,-151.0,0.00022473,7]
[370029585,1751848062104,-151.0,0.00022473,2]
[370029586,1751848062125,-166.018478,0.00022473,7]
[370029587,1751848062146,-166.018478,0.00022473,7]
[370029588,1751848062166,-151.0,0.00022473,7]
[370029589,1751848062188,-168.0,0.00022479,2]
[370029590,1751848062208,-14737.30183495,0.0002249,7]
[370029591,1751848062229,-229.522531,0.0002249,7]
[370029592,1751848062251,-259.332302,0.0002249,7]
[370029593,1751848062273,-259.332302,0.0002249,7]
[370029594,1751848062293,-151.0,0.0002249,7]
[370029595,1751848062522,-358.87352,0.0002249,7]
[370029596,1751848062547,-358.87352,0.0002249,7]
[370029597,1751848062569,-189.575216,0.0002249,7]
[370029598,1751848062591,-189.575209,0.0002249,7]
[370029599,1751848062612,-2000.0,0.000225,2]
[370029600,1751848062633,-128345.08,0.000225,2]
[370029601,1751848062654,-2000.0,0.000225,2]
[370029602,1751848062677,-2000.0,0.000225,2]
[370029603,1751848062698,-229.522531,0.000225,7]
[370029604,1751848062721,-229.522524,0.000225,7]
[370029605,1751848062743,-151.0,0.000225,9]
[370029606,1751848062764,-231.466223,0.000225,7]
[370029607,1751848062785,-259.332302,0.000225,7]
[370029608,1751848062806,-259.3323,0.000225,7]
[370029609,1751848062829,-151.0,0.000225,7]
[370029610,1751848062849,-358.87352,0.000225,7]
[370029611,1751848062871,-358.873528,0.000225,7]
[370029612,1751848062894,-151.0,0.000225,9]
[370029613,1751848062916,-391.911836,0.000225,7]
[370029614,1751848062937,-391.91183,0.000225,7]
[370029615,1751848062958,-151.0,0.000225,7]
[370029616,1751848062978,-151.0,0.000225,2]
[370029617,1751848063000,-166.018478,0.000225,7]
[370029618,1751848063024,-166.018478,0.000225,7]
[370029619,1751848063045,-151.0,0.000225,7]
[370029620,1751848063066,-214.03875559,0.000225,7]
[370029621,1751848063090,-524.94624002,0.000225,7]
[370029622,1751848063112,-848.15551661,0.000225,7]
[370029623,1751848063134,-151.0,0.00022502,5]
[370029624,1751848063156,-500.0,0.00022503,2]
[370029625,1751848063177,-5000.0,0.00022551,2]
[370029626,1751848063200,-168.0,0.00022559,2]
[370029627,1751848063224,-168.0,0.00022569,2]
[370029628,1751848063245,-161.1793277,0.00022573,2]
[370029629,1751848063266,-500.0,0.00022587,2]
[370029630,1751848063288,-2937.55,0.00022591,2]
[370029631,1751848063308,-200.0,0.00022599,2]
[370029632,1751848063338,-12702.446609,0.000226,2]
[370029633,1751848063359,-80032.84,0.000226,7]
[370029634,1751848063382,-132469.04013704,0.000226,5]
[370029635,1751848063404,-231.466223,0.000226,7]
[370029636,1751848063425,-231.466219,0.000226,7]
[370029637,1751848063446,-214.03875559,0.000226,7]
[370029638,1751848063467,-524.94624002,0.000226,7]
[370029639,1751848063488,-320.5,0.000226,2]
[370029640,1751848063509,-320.5,0.000226,2]
[370029641,1751848063530,-848.15551661,0.000226,7]
[370029642,1751848063550,-231.416104,0.00022603,2]
[370029643,1751848063571,-500.0,0.00022603,2]
[370029644,1751848063595,-2457.09295896,0.00022624,7]
[370029645,1751848063619,-168.0,0.00022662,2]
[370029646,1751848063639,-2937.55,0.00022691,6]
[370029647,1751848063663,-500.0,0.00022703,2]
[370029648,1751848063688,-168.0,0.00022728,2]
[370029649,1751848063709,-1037.97063399,0.0002277,2]
[370029650,1751848063731,-587.0,0.00022775,2]
[370029651,1751848063752,-2937.55,0.00022791,3]
[370029652,1751848063774,-1202.47797032,0.00022792,2]
[370029653,1751848063802,-2457.09295896,0.00022797,7]
[370029654,1751848063823,-151.0,0.000228,7]
[370029655,1751848063845,-151.0,0.000228,7]
[370029656,1751848063868,-500.0,0.00022803,2]
[370029657,1751848063889,-750.0,0.0002281,2]
[370029658,1751848063910,-2937.55,0.00022891,3]
[370029659,1751848063931,-23635.9,0.000229,2]
[370029660,1751848063951,-151.0,0.000229,8]
[370029661,1751848063975,-500.0,0.00022903,2]
[370029662,1751848063997,-86662.27627473,0.00022919,2]
[370029663,1751848064023,-2457.09295896,0.00022969,8]
[370029664,1751848064047,-168.0,0.00022977,2]
[370029665,1751848064069,-151.0,0.00022982,6]
[370029666,1751848064091,-2937.55,0.00022991,4]
[370029667,1751848064112,-165244.67380473,0.00023,8]
[370029682,1751848132492,179.97466115,0.0002533,120]
[370029686,1751848223575,333.141005,0.00013699,2]
[370029763,1751848232204,-300.0,0.00019999,2]
[370029764,1751848232214,-3627.385112,0.0002,2]
[370029765,1751848232224,-6413.820112,0.0002,2]
[370029766,1751848232235,-4152.41321272,0.0002,2]
[370029767,1751848232247,-2016.10321352,0.0002,2]
[370029768,1751848232256,-492.13439383,0.0002,2]
[370029769,1751848232274,-345.56061652,0.0002,2]
[370029770,1751848232284,-214.03875559,0.0002,2]
[370029771,1751848232294,-215.18120504,0.0002,2]
[370029772,1751848232304,-160.0,0.0002,2]
[370029773,1751848232313,-848.15551661,0.0002,2]
[370029774,1751848232323,-333.141005,0.00020187,2]
[370029775,1751848232332,-460.0,0.00020369,2]
[370029776,1751848232342,-2376.29515148,0.0002064,10]
[370029777,1751848232353,-1251.40894554,0.0002064,10]
[370029797,1751848242298,-8954.63244122,0.0002064,10]
[370029798,1751848242308,-214.03875559,0.0002064,10]
[370029800,1751848242317,-524.94624002,0.0002064,10]
[370029803,1751848242328,-160.0,0.00020643,2]
[370029804,1751848242337,-160.0,0.00020643,2]
[370029807,1751848242347,-230.45878613,0.00020643,2]
[370029808,1751848242357,-460.0,0.00020643,2]
[370029810,1751848242367,-151.0,0.0002069,2]
[370029813,1751848242376,-151.0,0.0002069,2]
[370029816,1751848242386,-151.0,0.0002069,2]